fUST/lending_fUST_20260118
["ID","MTS","AMOUNT","RATE_DAILY","PERIOD"]
[402458641,1768680669726,-1261.68,0.0001726,3]
[402458643,1768680669736,-500.0,0.0001726,3]
[402458645,1768680669745,-1087.65,0.0001726,3]
[402458647,1768680669756,-547.25,0.0001726,3]
[402458649,1768680669766,-500.0,0.0001726,3]
[402458651,1768680669774,-500.0,0.0001726,3]
[402458653,1768680669784,-1265.32,0.0001726,3]
[402458655,1768680669793,-500.0,0.0001726,3]
[402458656,1768680669803,-1310.48,0.0001726,3]
[402458658,1768680669812,-1112.25,0.0001726,3]
[402458660,1768680669821,-500.0,0.0001726,3]
[402458663,1768680669834,-500.0,0.0001726,3]
[402458665,1768680669843,-2390.17,0.0001726,3]
[402458666,1768680669852,-500.0,0.0001726,3]
[402458668,1768680669861,-500.0,0.0001726,3]
[402458670,1768680669871,-500.0,0.0001726,3]
[402458672,1768680669882,-500.0,0.0001726,3]
[402458674,1768680669891,-500.0,0.0001726,3]
[402458676,1768680669901,-500.0,0.0001726,3]
[402458678,1768680669910,-500.0,0.0001726,3]
[402458680,1768680669920,-500.0,0.0001726,3]
[402458682,1768680669930,-582.1,0.0001726,3]
[402458684,1768680669939,-538.55531083,0.0001726,3]
[402458686,1768680669948,-932.84,0.0001726,3]
[402458688,1768680669957,-725.5,0.0001726,3]
[402458690,1768680669967,-500.0,0.0001726,3]
[402458692,1768680669977,-500.0,0.0001726,3]
[402458694,1768680669986,-267.46419582,0.0001726,3]
[402458696,1768680669995,-500.0,0.0001726,3]
[402458698,1768680670004,-500.0,0.0001726,2]
[402458700,1768680670013,-271.88452189,0.0001726,3]
[402458702,1768680670023,-500.0,0.0001726,3]
[402458704,1768680670033,-532.65564852,0.0001726,2]
[402458706,1768680670045,-500.0,0.0001726,2]
[402458708,1768680670054,-375.27196908,0.0001726,3]
[402458710,1768680670063,-500.0,0.0001726,3]
[402458712,1768680670072,-500.0,0.0001726,3]
[402458714,1768680670082,-500.0,0.0001726,3]
[402458716,1768680670091,-500.0,0.0001726,3]
[402458718,1768680670101,-338.02289746,0.0001726,3]
[402458720,1768680670111,-500.0,0.0001726,3]
[402458722,1768680670120,-500.0,0.0001726,3]
[402458724,1768680670129,-500.0,0.0001726,3]
[402458726,1768680670138,-500.0,0.0001726,3]
[402458728,1768680670148,-1018.98,0.0001726,3]
[402458730,1768680670158,-500.0,0.0001726,3]
[402458732,1768680670167,-500.0,0.0001726,3]
[402458734,1768680670177,-968.96,0.0001726,3]
[402458736,1768680670187,-570.16,0.0001726,3]
[402458738,1768680670197,-500.0,0.0001726,3]
[402458740,1768680670207,-500.0,0.0001726,3]
[402458742,1768680670216,-500.0,0.0001726,3]
[402458744,1768680670225,-500.0,0.0001726,3]
[402458746,1768680670234,-817.35,0.0001726,3]
[402458748,1768680670244,-500.0,0.0001726,3]
[402458750,1768680670253,-2319.11,0.0001726,3]
[402458752,1768680670262,-480.06845953,0.0001726,3]
[402458754,1768680670271,-809.91,0.0001726,3]
[402458755,1768680670280,-552.32,0.0001726,3]
[402458758,1768680670292,-1146.04,0.0001726,3]
[402458759,1768680670302,-500.0,0.0001726,3]
[402458762,1768680670312,-500.0,0.0001726,2]
[402458764,1768680670321,-377.8688684,0.00017272,2]
[402458765,1768680670331,-168.0,0.00017299,2]
[402458767,1768680670340,-168.0,0.00017342,2]
[402458769,1768680670349,-478.75725327,0.00017383,2]
[402458771,1768680670358,-300.73,0.00017383,2]
[402458773,1768680670368,-2312.83697232,0.00017383,2]
[402458775,1768680670377,-168.0,0.00017384,2]
[402458777,1768680670386,-200.983,0.00017395,2]
[402458779,1768680670395,-222.015,0.00017395,2]
[402458781,1768680670404,-244.191,0.00017395,2]
[402458783,1768680670413,-232.572,0.00017395,2]
[402458785,1768680670422,-537.948621,0.00017395,7]
[402458786,1768680670432,-5000.0,0.00017412,2]
[402458787,1768680670442,-500.0,0.00017414,2]
[402458788,1768680670452,-250.0,0.0001745,2]
[402458789,1768680670461,-346.0,0.00017496,2]
[402458790,1768680670472,-200.096,0.00017505,2]
[402458791,1768680670481,-261.666,0.00017505,2]
[402458792,1768680670490,-267.705,0.00017505,2]
[402458793,1768680670500,-702.73,0.00017534,3]
[402458794,1768680670509,-240.93737345,0.00017534,3]
[402458795,1768680670519,-620.315084,0.00017534,3]
[402458796,1768680670528,-901.49,0.00017534,3]
[402458797,1768680670538,-500.0,0.00017534,3]
[402458798,1768680670547,-500.0,0.00017534,3]
[402458799,1768680670557,-500.0,0.00017534,3]
[402458800,1768680670566,-500.0,0.00017534,3]
[402458801,1768680670575,-500.0,0.00017534,3]
[402458802,1768680670585,-500.0,0.00017534,3]
[402458803,1768680670595,-578.0,0.00017534,3]
[402458804,1768680670605,-542.82,0.00017534,3]
[402458805,1768680670616,-500.0,0.00017534,3]
[402458806,1768680670627,-574.11,0.00017534,3]
[402458807,1768680670637,-691.15,0.00017534,3]
[402458808,1768680670647,-1047.7,0.00017534,3]
[402458809,1768680670657,-500.0,0.00017534,3]
[402458810,1768680670666,-500.0,0.00017534,3]
[402458811,1768680670676,-500.0,0.00017534,3]
[402458812,1768680670685,-500.0,0.00017534,3]
[402458813,1768680670696,-716.8,0.00017534,3]
[402458814,1768680670706,-342.2034934,0.00017534,3]
[402458815,1768680670716,-500.0,0.00017534,3]
[402458816,1768680670726,-559.01,0.00017534,3]
[402458817,1768680670736,-605.0,0.00017534,3]
[402458818,1768680670746,-500.0,0.00017534,3]
[402458819,1768680670756,-500.0,0.00017534,3]
[402458820,1768680670766,-548.05,0.00017534,3]
[402458821,1768680670776,-500.0,0.00017534,3]
[402458822,1768680670786,-500.0,0.00017534,3]
[402458823,1768680670795,-946.33,0.00017534,3]
[402458824,1768680670805,-382.56052383,0.00017534,3]
[402458826,1768680670814,-668.42,0.00017534,3]
[402458828,1768680670824,-500.0,0.00017534,3]
[402458830,1768680670839,-500.0,0.00017534,3]
[402458832,1768680670849,-502.2,0.00017534,3]
[402458834,1768680670860,-500.0,0.00017534,3]
[402458836,1768680670871,-500.0,0.00017534,3]
[402458838,1768680670880,-500.0,0.00017534,3]
[402458840,1768680670890,-500.0,0.00017534,3]
[402458842,1768680670901,-500.0,0.00017534,3]
[402458844,1768680670911,-1001.13,0.00017534,3]
[402458846,1768680670921,-500.0,0.00017534,3]
[402458848,1768680670931,-795.63,0.00017534,3]
[402458850,1768680670941,-681.88,0.00017534,3]
[402458852,1768680670950,-610.18,0.00017534,3]
[402458854,1768680670960,-919.37,0.00017534,3]
[402458856,1768680670970,-500.0,0.00017534,3]
[402458858,1768680670980,-803.45,0.00017534,3]
[402458860,1768680670990,-1421.56,0.00017534,3]
[402458862,1768680670999,-500.0,0.00017534,3]
[402458864,1768680671009,-799.69,0.00017534,3]
[402458866,1768680671019,-775.52,0.00017534,3]
[402458868,1768680671029,-314.91278331,0.00017534,3]
[402458870,1768680671038,-500.0,0.00017534,3]
[402458872,1768680671048,-500.0,0.00017534,3]
[402458874,1768680671058,-500.0,0.00017534,3]
[402458876,1768680671067,-842.59,0.00017534,3]
[402458878,1768680671077,-500.0,0.00017534,3]
[402458880,1768680671087,-822.16,0.00017534,3]
[402458882,1768680671096,-500.0,0.00017534,3]
[402458884,1768680671106,-500.0,0.00017534,3]
[402458886,1768680671116,-500.0,0.00017534,3]
[402458888,1768680671125,-500.0,0.00017534,3]
[402458890,1768680671135,-500.0,0.00017534,3]
[402458892,1768680671144,-1077.4,0.00017534,3]
[402458894,1768680671154,-1003.48,0.00017534,3]
[402458896,1768680671163,-806.24,0.00017534,3]
[402458898,1768680671173,-681.61,0.00017534,3]
[402458900,1768680671183,-500.0,0.00017534,3]
[402458902,1768680671194,-500.0,0.00017534,3]
[402458904,1768680671203,-645.22,0.00017534,3]
[402458906,1768680671213,-1314.52,0.00017534,3]
[402458908,1768680671224,-599.92,0.00017534,3]
[402458910,1768680671234,-641.05,0.00017534,3]
[402458912,1768680671245,-500.0,0.00017534,3]
[402458914,1768680671255,-500.0,0.00017534,3]
[402458916,1768680671266,-500.0,0.00017534,3]
[402458918,1768680671277,-719.55,0.00017534,3]
[402458920,1768680671287,-1000.0,0.00017534,2]
[402458922,1768680671297,-500.0,0.00017534,3]
[402458924,1768680671307,-500.0,0.00017534,3]
[402458926,1768680671317,-500.0,0.00017534,3]
[402458928,1768680671327,-500.0,0.00017534,3]
[402458931,1768680671337,-500.0,0.00017534,3]
[402458933,1768680671347,-500.0,0.00017534,3]
[402458935,1768680671357,-1209.49,0.00017534,3]
[402458937,1768680671367,-955.59,0.00017534,3]
[402458939,1768680671376,-500.0,0.00017534,3]
[402458941,1768680671387,-500.0,0.00017534,3]
[402458943,1768680671397,-500.0,0.00017534,3]
[402458945,1768680671406,-500.0,0.00017534,3]
[402458947,1768680671416,-734.88,0.00017534,3]
[402458949,1768680671427,-566.56,0.00017534,3]
[402458951,1768680671437,-500.0,0.00017534,3]
[402458953,1768680671447,-566.1,0.00017534,3]
[402458954,1768680671457,-184.00558895,0.00017534,3]
[402458956,1768680671467,-500.0,0.00017534,3]
[402458958,1768680671477,-500.0,0.00017534,3]
[402458960,1768680671487,-500.0,0.00017534,3]
[402458962,1768680671497,-417.990597,0.00017534,3]
[402458964,1768680671507,-500.0,0.00017534,3]
[402458966,1768680671518,-914.46,0.00017534,3]
[402458968,1768680671527,-738.38,0.00017534,3]
[402458970,1768680671537,-900.03,0.00017534,3]
[402458972,1768680671550,-227.93902115,0.00017534,3]
[402458974,1768680671559,-1099.86,0.00017534,3]
[402458976,1768680671569,-500.0,0.00017534,3]
[402458978,1768680671579,-500.0,0.00017534,3]
[402458980,1768680671589,-741.43,0.00017534,3]
[402458982,1768680671599,-579.54,0.00017534,3]
[402458984,1768680671609,-544.37,0.00017534,3]
[402458986,1768680671619,-500.0,0.00017534,3]
[402458988,1768680671629,-500.0,0.00017534,3]
[402458990,1768680671639,-1135.02,0.00017534,3]
[402458992,1768680671649,-500.0,0.00017534,3]
[402458994,1768680671659,-500.0,0.00017534,3]
[402458996,1768680671669,-500.0,0.00017534,3]
[402458998,1768680671679,-1457.74,0.00017534,3]
[402459000,1768680671689,-500.0,0.00017534,3]
[402459002,1768680671699,-1206.15,0.00017534,3]
[402459004,1768680671709,-638.0,0.00017534,3]
[402459006,1768680671718,-500.0,0.00017534,3]
[402459008,1768680671728,-561.09,0.00017534,3]
[402459010,1768680671738,-500.0,0.00017534,3]
[402459012,1768680671748,-542.03,0.00017534,3]
[402459014,1768680671758,-500.0,0.00017534,3]
[402459016,1768680671768,-500.0,0.00017534,3]
[402459018,1768680671779,-359.73801273,0.00017534,3]
[402459020,1768680671789,-500.0,0.00017534,3]
[402459022,1768680671799,-755.07,0.00017534,3]
[402459024,1768680671808,-500.0,0.00017534,3]
[402459026,1768680671818,-500.0,0.00017534,3]
[402459028,1768680671831,-500.0,0.00017534,3]
[402459030,1768680671841,-500.0,0.00017534,3]
[402459032,1768680671851,-500.0,0.00017534,3]
[402459034,1768680671861,-535.77,0.00017534,3]
[402459036,1768680671871,-655.03,0.00017534,3]
[402459038,1768680671882,-500.0,0.00017534,3]
[402459040,1768680671892,-500.0,0.00017534,3]
[402459043,1768680671904,-584.87,0.00017534,3]
[402459044,1768680671913,-500.0,0.00017534,3]
[402459046,1768680671923,-1353.4,0.00017534,3]
[402459048,1768680671933,-500.0,0.00017534,3]
[402459050,1768680671942,-1059.76,0.00017534,3]
[402459052,1768680671952,-1200.0,0.00017534,2]
[402459054,1768680671962,-500.0,0.00017534,3]
[402459056,1768680671972,-500.0,0.00017534,3]
[402459058,1768680671982,-500.0,0.00017534,3]
[402459060,1768680671991,-500.0,0.00017534,3]
[402459062,1768680672002,-580.81,0.00017534,3]
[402459065,1768680672013,-527.76,0.00017534,3]
[402459066,1768680672023,-847.23,0.00017534,3]
[402459068,1768680672033,-500.0,0.00017534,3]
[402459070,1768680672043,-500.0,0.00017534,3]
[402459072,1768680672052,-668.91,0.00017534,3]
[402459074,1768680672062,-600.65,0.00017534,3]
[402459076,1768680672072,-500.0,0.00017534,3]
[402459078,1768680672081,-500.0,0.00017534,3]
[402459080,1768680672091,-500.0,0.00017534,3]
[402459083,1768680672101,-500.0,0.00017534,3]
[402459085,1768680672110,-637.05,0.00017534,3]
[402459087,1768680672120,-500.0,0.00017534,3]
[402459089,1768680672131,-500.0,0.00017534,3]
[402459091,1768680672142,-1055.28,0.00017534,3]
[402459093,1768680672152,-1216.57,0.00017534,3]
[402459095,1768680672162,-517.21,0.00017534,3]
[402459097,1768680672172,-636.97,0.00017534,3]
[402459099,1768680672182,-500.0,0.00017534,3]
[402459101,1768680672191,-500.0,0.00017534,3]
[402459103,1768680672201,-500.0,0.00017534,3]
[402459105,1768680672211,-500.0,0.00017534,3]
[402459107,1768680672221,-614.66,0.00017534,3]
[402459109,1768680672231,-565.35,0.00017534,3]
[402459111,1768680672242,-500.0,0.00017534,3]
[402459113,1768680672251,-500.0,0.00017534,3]
[402459115,1768680672261,-500.0,0.00017534,3]
[402459117,1768680672271,-500.0,0.00017534,3]
[402459119,1768680672281,-500.0,0.00017534,3]
[402459121,1768680672290,-500.0,0.00017534,3]
[402459123,1768680672300,-826.46,0.00017534,3]
[402459125,1768680672310,-500.0,0.00017534,3]
[402459127,1768680672319,-500.0,0.00017534,3]
[402459129,1768680672329,-500.0,0.00017534,3]
[402459131,1768680672338,-500.0,0.00017534,3]
[402459133,1768680672348,-500.0,0.00017534,3]
[402459135,1768680672359,-500.0,0.00017534,3]
[402459137,1768680672369,-880.45,0.00017534,3]
[402459139,1768680672379,-500.0,0.00017534,3]
[402459141,1768680672388,-735.0,0.00017534,3]
[402459143,1768680672398,-1034.05,0.00017534,3]
[402459145,1768680672408,-500.0,0.00017534,3]
[402459147,1768680672418,-500.0,0.00017534,3]
[402459149,1768680672428,-535.81,0.00017534,3]
[402459151,1768680672438,-1027.04,0.00017534,3]
[402459153,1768680672448,-544.8,0.00017534,3]
[402459155,1768680672458,-500.0,0.00017534,3]
[402459157,1768680672467,-500.0,0.00017534,3]
[402459159,1768680672477,-1017.02,0.00017534,3]
[402459161,1768680672486,-500.0,0.00017534,3]
[402459163,1768680672496,-500.0,0.00017534,3]
[402459165,1768680672505,-500.0,0.00017534,3]
[402459167,1768680672515,-500.0,0.00017534,3]
[402459169,1768680672526,-1987.01,0.00017534,3]
[402459171,1768680672536,-500.0,0.00017534,3]
[402459173,1768680672546,-500.0,0.00017534,3]
[402459175,1768680672555,-793.73,0.00017534,3]
[402459177,1768680672565,-500.0,0.00017534,3]
[402459179,1768680672575,-500.0,0.00017534,3]
[402459181,1768680672585,-1079.32,0.00017534,3]
[402459183,1768680672595,-270.35725288,0.00017534,3]
[402459185,1768680672605,-500.0,0.00017534,3]
[402459187,1768680672615,-583.68,0.00017534,3]
[402459212,1768680672845,-210.5095372,0.00017534,3]
[402459215,1768680672864,-500.0,0.00017534,3]
[402459217,1768680672875,-500.0,0.00017534,3]
[402459219,1768680672884,-895.32,0.00017534,3]
[402459221,1768680672894,-770.07,0.00017534,3]
[402459223,1768680672903,-497.71228405,0.00017534,3]
[402459225,1768680672913,-667.44,0.00017534,3]
[402459227,1768680672923,-500.0,0.00017534,3]
[402459229,1768680672932,-760.25,0.00017534,3]
[402459231,1768680672941,-532.59,0.00017534,3]
[402459233,1768680672951,-500.0,0.00017534,3]
[402459235,1768680672960,-500.0,0.00017534,3]
[402459237,1768680672969,-500.0,0.00017534,3]
[402459239,1768680672979,-500.0,0.00017534,3]
[402459241,1768680672988,-555.66,0.00017534,3]
[402459243,1768680672998,-500.0,0.00017534,3]
[402459245,1768680673007,-500.0,0.00017534,3]
[402459247,1768680673016,-500.0,0.00017534,3]
[402459249,1768680673026,-778.89,0.00017534,3]
[402459251,1768680673036,-509.24,0.00017534,3]
[402459253,1768680673047,-500.0,0.00017534,3]
[402459255,1768680673057,-1420.19,0.00017534,3]
[402459257,1768680673067,-951.27,0.00017534,3]
[402459259,1768680673077,-669.06,0.00017534,3]
[402459261,1768680673086,-10906.95,0.00017534,3]
[402459263,1768680673096,-764.59,0.00017534,3]
[402459265,1768680673105,-500.0,0.00017534,3]
[402459268,1768680673115,-500.0,0.00017534,3]
[402459269,1768680673124,-1161.1,0.00017534,3]
[402459271,1768680673133,-500.0,0.00017534,3]
[402459273,1768680673143,-500.0,0.00017534,3]
[402459275,1768680673153,-632.14,0.00017534,3]
[402459277,1768680673162,-500.0,0.00017534,3]
[402459279,1768680673172,-1332.15,0.00017534,3]
[402459281,1768680673182,-883.07,0.00017534,3]
[402459283,1768680673191,-694.52,0.00017534,3]
[402459286,1768680673201,-832.57,0.00017534,3]
[402459287,1768680673211,-500.0,0.00017534,3]
[402459288,1768680673220,-500.0,0.00017534,3]
[402459289,1768680673230,-726.59,0.00017534,3]
[402459290,1768680673240,-1045.91,0.00017534,3]
[402459291,1768680673250,-500.0,0.00017534,3]
[402459292,1768680673260,-606.2,0.00017534,3]
[402459293,1768680673270,-500.0,0.00017534,3]
[402459294,1768680673280,-1061.57,0.00017534,3]
[402459295,1768680673290,-500.0,0.00017534,3]
[402459296,1768680673300,-500.0,0.00017534,3]
[402459298,1768680673310,-500.0,0.00017534,3]
[402459300,1768680673320,-500.0,0.00017534,3]
[402459302,1768680673330,-500.0,0.00017534,3]
[402459304,1768680673340,-500.0,0.00017534,3]
[402459306,1768680673350,-489.41292271,0.00017534,3]
[402459308,1768680673359,-1256.22,0.00017534,3]
[402459310,1768680673369,-500.0,0.00017534,3]
[402459312,1768680673378,-500.0,0.00017534,3]
[402459314,1768680673388,-359.70357189,0.00017534,3]
[402459316,1768680673397,-500.0,0.00017534,3]
[402459318,1768680673407,-1057.38,0.00017534,3]
[402459320,1768680673416,-500.0,0.00017534,3]
[402459322,1768680673426,-155.6746373,0.00017534,3]
[402459324,1768680673436,-206.13170951,0.00017534,3]
[402459326,1768680673446,-500.0,0.00017534,3]
[402459328,1768680673455,-500.0,0.00017534,3]
[402459330,1768680673465,-1554.16,0.00017534,3]
[402459332,1768680673474,-500.0,0.00017534,3]
[402459334,1768680673484,-505.39,0.00017534,3]
[402459336,1768680673494,-909.62,0.00017534,3]
[402459338,1768680673503,-500.0,0.00017534,3]
[402459340,1768680673513,-701.17,0.00017534,3]
[402459342,1768680673522,-999.66,0.00017534,3]
[402459344,1768680673531,-500.0,0.00017534,3]
[402459346,1768680673540,-1052.54,0.00017534,3]
[402459348,1768680673550,-151.0,0.00017534,2]
[402459350,1768680673560,-500.0,0.00017534,3]
[402459352,1768680673569,-965.24,0.00017534,3]
[402459354,1768680673578,-1038.17,0.00017534,3]
[402459356,1768680673587,-500.0,0.00017534,3]
[402459358,1768680673597,-500.0,0.00017534,3]
[402459360,1768680673606,-776.94,0.00017534,3]
[402459362,1768680673616,-1735.2,0.00017534,3]
[402459364,1768680673625,-1719.73,0.00017534,3]
[402459366,1768680673635,-500.0,0.00017534,3]
[402459369,1768680673645,-500.0,0.00017534,3]
[402459370,1768680673654,-500.0,0.00017534,3]
[402459373,1768680673664,-500.0,0.00017534,3]
[402459374,1768680673673,-1140.32,0.00017534,3]
[402459376,1768680673682,-500.0,0.00017534,3]
[402459379,1768680673692,-500.0,0.00017534,3]
[402459380,1768680673701,-500.0,0.00017534,3]
[402459382,1768680673710,-643.79,0.00017534,3]
[402459384,1768680673720,-500.0,0.00017534,3]
[402459386,1768680673730,-809.67,0.00017534,3]
[402459389,1768680673740,-500.0,0.00017534,3]
[402459391,1768680673749,-500.0,0.00017534,3]
[402459393,1768680673759,-500.0,0.00017534,3]
[402459395,1768680673768,-1273.89,0.00017534,3]
[402459397,1768680673777,-151.0,0.00017534,2]
[402459399,1768680673787,-628.87,0.00017534,3]
[402459401,1768680673796,-298.75076,0.00017534,2]
[402459403,1768680673806,-1510.19,0.00017534,3]
[402459405,1768680673816,-500.0,0.00017534,3]
[402459407,1768680673827,-631.51,0.00017534,3]
[402459409,1768680673839,-878.72,0.00017534,3]
[402459411,1768680673849,-500.0,0.00017534,3]
[402459413,1768680673859,-500.0,0.00017534,3]
[402459415,1768680673868,-500.0,0.00017534,3]
[402459417,1768680673878,-500.0,0.00017534,3]
[402459419,1768680673887,-903.91,0.00017534,3]
[402459421,1768680673897,-500.0,0.00017534,3]
[402459423,1768680673908,-500.0,0.00017534,3]
[402459425,1768680673918,-500.0,0.00017534,3]
[402459427,1768680673927,-1425.71,0.00017534,3]
[402459429,1768680673937,-500.0,0.00017534,3]
[402459431,1768680673946,-500.0,0.00017534,3]
[402459433,1768680673956,-553.19,0.00017534,3]
[402459435,1768680673966,-500.0,0.00017534,3]
[402459437,1768680673975,-500.0,0.00017534,3]
[402459439,1768680673984,-500.0,0.00017534,3]
[402459441,1768680673993,-500.0,0.00017534,3]
[402459443,1768680674003,-500.0,0.00017534,3]
[402459445,1768680674012,-500.0,0.00017534,3]
[402459447,1768680674022,-500.0,0.00017534,3]
[402459449,1768680674032,-500.0,0.00017534,3]
[402459451,1768680674041,-500.0,0.00017534,3]
[402459453,1768680674050,-500.0,0.00017534,3]
[402459455,1768680674060,-500.0,0.00017534,3]
[402459457,1768680674070,-500.0,0.00017534,3]
[402459459,1768680674079,-2083.26,0.00017534,3]
[402459461,1768680674089,-500.0,0.00017534,3]
[402459463,1768680674099,-500.0,0.00017534,3]
[402459465,1768680674108,-500.0,0.00017534,3]
[402459467,1768680674118,-500.0,0.00017534,3]
[402459469,1768680674127,-500.0,0.00017534,3]
[402459471,1768680674137,-658.95,0.00017534,3]
[402459473,1768680674148,-500.0,0.00017534,3]
[402459475,1768680674157,-500.0,0.00017534,3]
[402459477,1768680674166,-500.0,0.00017534,3]
[402459479,1768680674176,-500.0,0.00017534,3]
[402459481,1768680674185,-1370.45,0.00017534,3]
[402459484,1768680674195,-500.0,0.00017534,3]
[402459486,1768680674204,-609.79,0.00017534,3]
[402459488,1768680674213,-500.0,0.00017534,3]
[402459490,1768680674222,-1222.64,0.00017534,3]
[402459491,1768680674232,-1860.69,0.00017534,3]
[402459494,1768680674241,-500.0,0.00017534,3]
[402459495,1768680674251,-500.0,0.00017534,3]
[402459497,1768680674261,-948.78,0.00017534,3]
[402459499,1768680674270,-1065.95,0.00017534,3]
[402459501,1768680674279,-907.15,0.00017534,3]
[402459503,1768680674289,-733.76,0.00017534,3]
[402459505,1768680674298,-500.0,0.00017534,3]
[402459507,1768680674307,-531.61,0.00017534,3]
[402459509,1768680674317,-500.0,0.00017534,3]
[402459511,1768680674326,-500.0,0.00017534,3]
[402459513,1768680674336,-500.0,0.00017534,3]
[402459515,1768680674345,-500.0,0.00017534,3]
[402459518,1768680674355,-775.8,0.00017534,3]
[402459520,1768680674365,-1570.13,0.00017534,3]
[402459522,1768680674375,-947.9,0.00017534,3]
[402459524,1768680674385,-623.61,0.00017534,3]
[402459526,1768680674394,-500.0,0.00017534,3]
[402459528,1768680674404,-500.0,0.00017534,3]
[402459530,1768680674413,-500.0,0.00017534,3]
[402459532,1768680674423,-500.0,0.00017534,3]
[402459534,1768680674432,-632.68,0.00017534,3]
[402459536,1768680674442,-500.0,0.00017534,3]
[402459538,1768680674452,-500.0,0.00017534,3]
[402459540,1768680674462,-500.0,0.00017534,3]
[402459542,1768680674472,-1858.88,0.00017534,3]
[402459544,1768680674482,-6357.57,0.00017534,3]
[402459546,1768680674491,-1319.32,0.00017534,3]
[402459548,1768680674501,-500.0,0.00017534,3]
[402459550,1768680674511,-897.51,0.00017534,3]
[402459552,1768680674522,-601.78,0.00017534,3]
[402459554,1768680674532,-500.0,0.00017534,3]
[402459556,1768680674541,-539.94,0.00017534,3]
[402459558,1768680674553,-677.0,0.00017534,3]
[402459560,1768680674563,-1793.48,0.00017534,3]
[402459562,1768680674573,-1123.25,0.00017534,3]
[402459564,1768680674582,-500.0,0.00017534,3]
[402459567,1768680674592,-1081.46,0.00017534,3]
[402459569,1768680674601,-500.0,0.00017534,3]
[402459571,1768680674611,-659.73,0.00017534,3]
[402459573,1768680674621,-500.0,0.00017534,3]
[402459575,1768680674630,-500.0,0.00017534,3]
[402459577,1768680674640,-597.06,0.00017534,3]
[402459579,1768680674651,-1335.7,0.00017534,3]
[402459581,1768680674661,-500.0,0.00017534,3]
[402459583,1768680674670,-558.42,0.00017534,3]
[402459585,1768680674679,-500.0,0.00017534,3]
[402459587,1768680674689,-566.78,0.00017534,3]
[402459589,1768680674697,-500.0,0.00017534,3]
[402459591,1768680674706,-872.79,0.00017534,3]
[402459593,1768680674716,-688.44,0.00017534,3]
[402459595,1768680674725,-500.0,0.00017534,3]
[402459597,1768680674735,-500.0,0.00017534,3]
[402459599,1768680674745,-500.0,0.00017534,3]
[402459601,1768680674756,-500.0,0.00017534,3]
[402459603,1768680674765,-500.0,0.00017534,3]
[402459605,1768680674775,-500.0,0.00017534,3]
[402459607,1768680674785,-500.0,0.00017534,3]
[402459609,1768680674794,-500.0,0.00017534,3]
[402459611,1768680674804,-500.0,0.00017534,3]
[402459613,1768680674814,-543.38,0.00017534,3]
[402459615,1768680674823,-221.78015964,0.00017534,3]
[402459617,1768680674837,-151.0,0.00017534,2]